[Event "Late-Titled-Tuesday-Blitz-December-26-2023"]
[Site "Chess.com"]
[Date "2023.12.26"]
[Round "2"]
[White "norman927"]
[Black "Skatchkov_V"]
[Result "1-0"]
[WhiteElo "2360"]
[BlackElo "2563"]
[TimeControl "180+1"]
[EndTime "14:18:08 PST"]
[Termination "norman927 won by resignation"]

1. e4 {[%clk 0:03:00.9]} 1... e5 {[%clk 0:02:56.5]} 2. Nf3 {[%clk 0:03:00.8]}
2... d5 {[%clk 0:02:56.9]} 3. Nxe5 {[%clk 0:02:44.5]} 3... Bd6 {[%clk
0:02:56.5]} 4. d4 {[%clk 0:02:43.8]} 4... dxe4 {[%clk 0:02:56.4]} 5. Bc4 {[%clk
0:02:41.1]} 5... Bxe5 {[%clk 0:02:56.5]} 6. Qh5 {[%clk 0:02:41.3]} 6... Qe7
{[%clk 0:02:52.2]} 7. Qxe5 {[%clk 0:02:40.9]} 7... Qxe5 {[%clk 0:02:51.9]} 8.
dxe5 {[%clk 0:02:41.1]} 8... Nc6 {[%clk 0:02:50.5]} 9. Nc3 {[%clk 0:02:40.3]}
9... Bf5 {[%clk 0:02:50.5]} 10. O-O {[%clk 0:02:29.7]} 10... Nxe5 {[%clk
0:02:48.6]} 11. Bb3 {[%clk 0:02:27.8]} 11... O-O-O {[%clk 0:02:34.5]} 12. Bf4
{[%clk 0:02:02.2]} 12... Ng6 {[%clk 0:02:32.1]} 13. Be3 {[%clk 0:02:00.9]} 13...
Nf6 {[%clk 0:01:36.5]} 14. Bxf7 {[%clk 0:01:57.5]} 14... Rhf8 {[%clk 0:01:35.2]}
15. Bb3 {[%clk 0:01:54.4]} 15... Ng4 {[%clk 0:01:27.4]} 16. Bg5 {[%clk
0:01:45.5]} 16... Rde8 {[%clk 0:01:25.5]} 17. h3 {[%clk 0:01:43.1]} 17... Nf6
{[%clk 0:01:14.6]} 18. Rfe1 {[%clk 0:01:36.2]} 18... a6 {[%clk 0:01:12.2]} 19.
a4 {[%clk 0:01:26.1]} 19... Nd7 {[%clk 0:01:03.1]} 20. Bd5 {[%clk 0:00:57.8]}
20... h6 {[%clk 0:00:43.4]} 21. Be3 {[%clk 0:00:51.8]} 21... Re5 {[%clk
0:00:33.7]} 22. Bd4 {[%clk 0:00:47.9]} 22... Re7 {[%clk 0:00:30.9]} 23. Bxe4
{[%clk 0:00:42.7]} 23... Rfe8 {[%clk 0:00:31]} 24. f3 {[%clk 0:00:40]} 24... c5
{[%clk 0:00:26.7]} 25. Bf2 {[%clk 0:00:40.2]} 25... Bxe4 {[%clk 0:00:25.1]} 26.
Nxe4 {[%clk 0:00:40.6]} 26... Kd8 {[%clk 0:00:22.4]} 27. Rad1 {[%clk 0:00:34.7]}
27... Re6 {[%clk 0:00:18.7]} 28. Rxd7+ {[%clk 0:00:27.5]} 28... Kxd7 {[%clk
0:00:18.3]} 29. Nxc5+ {[%clk 0:00:28]} 29... Kd6 {[%clk 0:00:19.2]} 30. Rxe6+
{[%clk 0:00:22.7]} 30... Rxe6 {[%clk 0:00:18.7]} 31. Nxe6 {[%clk 0:00:23.3]}
31... Kxe6 {[%clk 0:00:19.6]} 32. Kf1 {[%clk 0:00:23.4]} 32... Nf4 {[%clk
0:00:19.4]} 33. Be3 {[%clk 0:00:17.4]} 33... Nd5 {[%clk 0:00:19.2]} 34. Ke2
{[%clk 0:00:17.7]} 34... Kd7 {[%clk 0:00:18.8]} 35. Bd4 {[%clk 0:00:17.6]} 35...
Nf4+ {[%clk 0:00:18.2]} 36. Kf2 {[%clk 0:00:17.3]} 36... Ne6 {[%clk 0:00:18]}
37. Bc3 {[%clk 0:00:17.1]} 37... Kc6 {[%clk 0:00:18.4]} 38. g3 {[%clk
0:00:16.7]} 38... g6 {[%clk 0:00:19]} 39. f4 {[%clk 0:00:16.8]} 39... Kd5 {[%clk
0:00:19.6]} 40. Ke3 {[%clk 0:00:16.7]} 40... h5 {[%clk 0:00:19.3]} 41. g4 {[%clk
0:00:16.1]} 41... hxg4 {[%clk 0:00:19.3]} 42. hxg4 {[%clk 0:00:16.6]} 42... Nc5
{[%clk 0:00:20.2]} 43. f5 {[%clk 0:00:15.6]} 43... gxf5 {[%clk 0:00:19.8]} 44.
gxf5 {[%clk 0:00:16.1]} 44... Nxa4 {[%clk 0:00:20.6]} 45. Bd4 {[%clk 0:00:15.3]}
45... a5 {[%clk 0:00:12.2]} 46. b3 {[%clk 0:00:14.7]} 46... Nc5 {[%clk
0:00:12.8]} 47. Bxc5 {[%clk 0:00:14.9]} 47... Kxc5 {[%clk 0:00:13.7]} 48. f6
{[%clk 0:00:15.5]} 48... Kd6 {[%clk 0:00:14.3]} 49. Kd4 {[%clk 0:00:16]} 49...
Ke6 {[%clk 0:00:14.4]} 50. Kc5 {[%clk 0:00:16.4]} 50... Kxf6 {[%clk 0:00:15.1]}
51. Kb6 {[%clk 0:00:16.8]} 51... a4 {[%clk 0:00:15.1]} 52. bxa4 {[%clk
0:00:17.1]} 52... Ke5 {[%clk 0:00:15.6]} 53. Kxb7 {[%clk 0:00:17.8]} 53... Kd5
{[%clk 0:00:16.5]} 54. a5 {[%clk 0:00:18.6]} 1-0

[Event "Late-Titled-Tuesday-Blitz-December-26-2023"]
[Site "Chess.com"]
[Date "2023.12.26"]
[Round "2"]
[White "Statham_l3"]
[Black "rasmussvane"]
[Result "0-1"]
[WhiteElo "2571"]
[BlackElo "2902"]
[TimeControl "180+1"]
[EndTime "14:18:12 PST"]
[Termination "rasmussvane won by checkmate"]

1. e4 {[%clk 0:03:00.9]} 1... c6 {[%clk 0:02:57.7]} 2. d4 {[%clk 0:03:00.5]}
2... d5 {[%clk 0:02:58.6]} 3. f3 {[%clk 0:03:01.1]} 3... e6 {[%clk 0:02:52.1]}
4. Nc3 {[%clk 0:03:01]} 4... Bb4 {[%clk 0:02:51.7]} 5. a3 {[%clk 0:03:01.3]}
5... Ba5 {[%clk 0:02:51]} 6. Nh3 {[%clk 0:02:51.6]} 6... Ne7 {[%clk 0:02:47.4]}
7. Bd3 {[%clk 0:02:50]} 7... dxe4 {[%clk 0:02:45.1]} 8. Bxe4 {[%clk 0:02:43.4]}
8... Nd7 {[%clk 0:02:44.3]} 9. O-O {[%clk 0:02:37.9]} 9... Nf6 {[%clk
0:02:44.1]} 10. Bg5 {[%clk 0:02:36]} 10... Ned5 {[%clk 0:02:34.3]} 11. Qd3
{[%clk 0:02:08.5]} 11... h6 {[%clk 0:02:31.2]} 12. Bh4 {[%clk 0:02:04.5]} 12...
O-O {[%clk 0:02:22.4]} 13. Rae1 {[%clk 0:01:54.2]} 13... Nxc3 {[%clk 0:02:16.6]}
14. bxc3 {[%clk 0:01:50.8]} 14... c5 {[%clk 0:02:17.2]} 15. Bh7+ {[%clk
0:01:27.4]} 15... Kh8 {[%clk 0:02:17.1]} 16. Re5 {[%clk 0:01:28]} 16... Bb6
{[%clk 0:01:25.9]} 17. g4 {[%clk 0:01:13.3]} 17... cxd4 {[%clk 0:01:23.5]} 18.
c4 {[%clk 0:01:13.5]} 18... Bc7 {[%clk 0:01:14.1]} 19. Rh5 {[%clk 0:00:59.7]}
19... Bd6 {[%clk 0:01:12.2]} 20. Nf2 {[%clk 0:00:48.8]} 20... Be7 {[%clk
0:01:10.8]} 21. Bxf6 {[%clk 0:00:43.4]} 21... Bxf6 {[%clk 0:01:11.7]} 22. Ne4
{[%clk 0:00:43.6]} 22... Be7 {[%clk 0:01:03.2]} 23. g5 {[%clk 0:00:42.3]} 23...
Bd7 {[%clk 0:01:02.3]} 24. gxh6 {[%clk 0:00:37]} 24... g6 {[%clk 0:01:02.6]} 25.
Qxd4+ {[%clk 0:00:35.9]} 25... f6 {[%clk 0:01:01.4]} 26. Bxg6 {[%clk 0:00:31.6]}
26... Rg8 {[%clk 0:01:02]} 27. Rg5 {[%clk 0:00:17.7]} 27... e5 {[%clk
0:00:45.8]} 28. Qd5 {[%clk 0:00:18]} 28... fxg5 {[%clk 0:00:32.7]} 29. Qf7
{[%clk 0:00:17.9]} 29... Rxg6 {[%clk 0:00:28.3]} 30. Qxg6 {[%clk 0:00:18.8]}
30... Qg8 {[%clk 0:00:28.5]} 31. Qh5 {[%clk 0:00:10.4]} 31... Bf5 {[%clk
0:00:28.6]} 32. Rd1 {[%clk 0:00:06.8]} 32... Rd8 {[%clk 0:00:26.1]} 33. Rxd8
{[%clk 0:00:05.5]} 33... Bxd8 {[%clk 0:00:27]} 34. Nd6 {[%clk 0:00:04.2]} 34...
Bb6+ {[%clk 0:00:19.4]} 35. Kh1 {[%clk 0:00:04.2]} 35... Qg6 {[%clk 0:00:19.9]}
36. Nf7+ {[%clk 0:00:02.8]} 36... Kh7 {[%clk 0:00:19.9]} 37. Nxg5+ {[%clk
0:00:03]} 37... Kh8 {[%clk 0:00:18.5]} 38. Nf7+ {[%clk 0:00:03.5]} 38... Kg8
{[%clk 0:00:19]} 39. h7+ {[%clk 0:00:04.1]} 39... Qxh7 {[%clk 0:00:17.5]} 40.
Nh6+ {[%clk 0:00:04.4]} 40... Kh8 {[%clk 0:00:14.8]} 41. Qe8+ {[%clk 0:00:02.5]}
41... Kg7 {[%clk 0:00:14.9]} 42. Nxf5+ {[%clk 0:00:03]} 42... Qxf5 {[%clk
0:00:15.3]} 43. Qe7+ {[%clk 0:00:03.7]} 43... Kg6 {[%clk 0:00:15.3]} 44. Qe8+
{[%clk 0:00:03.9]} 44... Qf7 {[%clk 0:00:14.4]} 45. Qe7 {[%clk 0:00:01.5]} 45...
Qxf3# {[%clk 0:00:14]} 0-1

[Event "Late-Titled-Tuesday-Blitz-December-26-2023"]
[Site "Chess.com"]
[Date "2023.12.26"]
[Round "2"]
[White "ZuraTqebuchava"]
[Black "ilushka"]
[Result "1-0"]
[WhiteElo "2174"]
[BlackElo "2441"]
[TimeControl "180+1"]
[EndTime "14:18:13 PST"]
[Termination "ZuraTqebuchava won on time"]

1. e4 {[%clk 0:02:59.5]} 1... e5 {[%clk 0:02:57.1]} 2. Nf3 {[%clk 0:02:59.1]}
2... Nc6 {[%clk 0:02:57.6]} 3. Bb5 {[%clk 0:02:59.3]} 3... Nf6 {[%clk
0:02:57.8]} 4. O-O {[%clk 0:02:58.6]} 4... Nxe4 {[%clk 0:02:57.9]} 5. Re1 {[%clk
0:02:58.4]} 5... Nd6 {[%clk 0:02:57.9]} 6. Bxc6 {[%clk 0:02:58.3]} 6... dxc6
{[%clk 0:02:57.4]} 7. Nxe5 {[%clk 0:02:58.4]} 7... Be7 {[%clk 0:02:57.3]} 8. d4
{[%clk 0:02:57.9]} 8... O-O {[%clk 0:02:57.3]} 9. c3 {[%clk 0:02:56.4]} 9... Bf6
{[%clk 0:02:53.1]} 10. Bf4 {[%clk 0:02:50.9]} 10... Re8 {[%clk 0:02:51.7]} 11.
Nd2 {[%clk 0:02:48.5]} 11... Be6 {[%clk 0:02:47.9]} 12. h3 {[%clk 0:02:39.7]}
12... g6 {[%clk 0:02:42]} 13. Qf3 {[%clk 0:02:25.1]} 13... Bd5 {[%clk
0:02:28.8]} 14. Qd3 {[%clk 0:02:15.8]} 14... a5 {[%clk 0:02:20.2]} 15. a4 {[%clk
0:02:09.3]} 15... Be6 {[%clk 0:02:17.6]} 16. Re2 {[%clk 0:01:48.4]} 16... Bxe5
{[%clk 0:02:08.2]} 17. Bxe5 {[%clk 0:01:43.4]} 17... f6 {[%clk 0:02:01.4]} 18.
Bxd6 {[%clk 0:01:39.1]} 18... cxd6 {[%clk 0:01:57.3]} 19. Rae1 {[%clk
0:01:33.9]} 19... Qd7 {[%clk 0:01:54.3]} 20. Ne4 {[%clk 0:01:26.3]} 20... Kg7
{[%clk 0:01:53.2]} 21. Qf3 {[%clk 0:01:22.4]} 21... Bf5 {[%clk 0:01:41.9]} 22.
Ng3 {[%clk 0:01:04.9]} 22... Rxe2 {[%clk 0:01:42]} 23. Nxf5+ {[%clk 0:00:53.6]}
23... Qxf5 {[%clk 0:01:42.9]} 24. Qxe2 {[%clk 0:00:53.8]} 24... Rf8 {[%clk
0:00:59.3]} 25. Qe7+ {[%clk 0:00:51.6]} 25... Rf7 {[%clk 0:00:59.6]} 26. Qxd6
{[%clk 0:00:49.9]} 26... Qc2 {[%clk 0:00:59]} 27. Re7 {[%clk 0:00:38.9]} 27...
Qxb2 {[%clk 0:00:53.5]} 28. Qd7 {[%clk 0:00:24.3]} 28... Qc1+ {[%clk 0:00:23]}
29. Kh2 {[%clk 0:00:24]} 29... Qf4+ {[%clk 0:00:22.1]} 30. Kg1 {[%clk
0:00:23.5]} 30... Rxe7 {[%clk 0:00:14.8]} 31. Qxe7+ {[%clk 0:00:23.1]} 31... Kh6
{[%clk 0:00:15.4]} 32. Qf8+ {[%clk 0:00:19.6]} 32... Kg5 {[%clk 0:00:14.5]} 33.
Qc5+ {[%clk 0:00:18.2]} 33... Qf5 {[%clk 0:00:13.7]} 34. Qf8 {[%clk 0:00:06.8]}
34... Qd5 {[%clk 0:00:08.6]} 35. h4+ {[%clk 0:00:06.4]} 35... Kh5 {[%clk
0:00:05.3]} 36. Qxf6 {[%clk 0:00:06.4]} 36... Qf5 {[%clk 0:00:03]} 37. Qe7
{[%clk 0:00:05.8]} 37... h6 {[%clk 0:00:02.6]} 38. Qxb7 {[%clk 0:00:05.5]} 38...
g5 {[%clk 0:00:01.6]} 39. Qxc6 {[%clk 0:00:04.7]} 39... Kxh4 {[%clk 0:00:01.1]}
40. Qf3 {[%clk 0:00:04.4]} 1-0

[Event "Late-Titled-Tuesday-Blitz-December-26-2023"]
[Site "Chess.com"]
[Date "2023.12.26"]
[Round "2"]
[White "Leo_C"]
[Black "Elsa167"]
[Result "0-1"]
[WhiteElo "2611"]
[BlackElo "2983"]
[TimeControl "180+1"]
[EndTime "14:18:15 PST"]
[Termination "Elsa167 won on time"]

1. e4 {[%clk 0:03:00.9]} 1... c6 {[%clk 0:02:59.6]} 2. Nf3 {[%clk 0:03:00.4]}
2... d5 {[%clk 0:03:00.1]} 3. Nc3 {[%clk 0:03:01.1]} 3... Bg4 {[%clk 0:03:00.2]}
4. h3 {[%clk 0:03:01]} 4... Bxf3 {[%clk 0:03:00.5]} 5. Qxf3 {[%clk 0:03:01.9]}
5... e6 {[%clk 0:03:01.1]} 6. Be2 {[%clk 0:03:01.9]} 6... Nf6 {[%clk 0:03:00.8]}
7. O-O {[%clk 0:03:01.3]} 7... d4 {[%clk 0:02:58.4]} 8. Nb1 {[%clk 0:03:00.4]}
8... Bd6 {[%clk 0:02:54.1]} 9. d3 {[%clk 0:02:59.9]} 9... Nbd7 {[%clk
0:02:53.3]} 10. h4 {[%clk 0:02:49.6]} 10... h5 {[%clk 0:02:42.6]} 11. Qh3 {[%clk
0:02:46.1]} 11... e5 {[%clk 0:02:07.6]} 12. a4 {[%clk 0:02:41.1]} 12... Ng4
{[%clk 0:01:55.8]} 13. Nd2 {[%clk 0:02:31.8]} 13... Qf6 {[%clk 0:01:35.7]} 14.
g3 {[%clk 0:02:23.2]} 14... Qg6 {[%clk 0:01:29.1]} 15. Nc4 {[%clk 0:02:22.4]}
15... Bc7 {[%clk 0:01:29.3]} 16. f3 {[%clk 0:02:05.9]} 16... Ngf6 {[%clk
0:01:24.3]} 17. Kh1 {[%clk 0:01:57.7]} 17... O-O-O {[%clk 0:01:22.5]} 18. b4
{[%clk 0:01:56.8]} 18... Ne8 {[%clk 0:01:12.1]} 19. b5 {[%clk 0:01:47.4]} 19...
Kb8 {[%clk 0:01:06.3]} 20. bxc6 {[%clk 0:01:46]} 20... Qxc6 {[%clk 0:01:05.7]}
21. Ba3 {[%clk 0:01:31]} 21... Bd6 {[%clk 0:00:57.9]} 22. Rfb1 {[%clk
0:01:24.8]} 22... Bxa3 {[%clk 0:00:38.8]} 23. Na5 {[%clk 0:01:22]} 23... Qc3
{[%clk 0:00:38.9]} 24. Rxb7+ {[%clk 0:01:17.2]} 24... Ka8 {[%clk 0:00:38.6]} 25.
Rab1 {[%clk 0:00:50.8]} 25... Nef6 {[%clk 0:00:26.9]} 26. Nc4 {[%clk 0:00:34.2]}
26... Rb8 {[%clk 0:00:22.8]} 27. Rxb8+ {[%clk 0:00:21.6]} 27... Rxb8 {[%clk
0:00:23.7]} 28. Rxb8+ {[%clk 0:00:21.5]} 28... Kxb8 {[%clk 0:00:24.6]} 29. Qf1
{[%clk 0:00:17.9]} 29... Bb4 {[%clk 0:00:24.5]} 30. Qb1 {[%clk 0:00:17.6]} 30...
Qe1+ {[%clk 0:00:24.7]} 31. Qxe1 {[%clk 0:00:16.6]} 31... Bxe1 {[%clk
0:00:25.6]} 32. Kg2 {[%clk 0:00:17.3]} 32... g6 {[%clk 0:00:25]} 33. Nd6 {[%clk
0:00:14.7]} 33... Nc5 {[%clk 0:00:13.4]} 34. Nxf7 {[%clk 0:00:14.4]} 34... Nfd7
{[%clk 0:00:13.5]} 35. Kh3 {[%clk 0:00:08.9]} 35... Nxa4 {[%clk 0:00:12.8]} 36.
Nh8 {[%clk 0:00:05.7]} 36... Nf8 {[%clk 0:00:12.1]} 37. Nf7 {[%clk 0:00:05.5]}
37... Nd7 {[%clk 0:00:10.7]} 38. Nh8 {[%clk 0:00:05.2]} 38... Nc3 {[%clk
0:00:11.3]} 39. Bf1 {[%clk 0:00:05.6]} 39... a5 {[%clk 0:00:11.5]} 40. Nxg6
{[%clk 0:00:04.2]} 40... a4 {[%clk 0:00:12.1]} 41. Ne7 {[%clk 0:00:02.9]} 41...
Kc7 {[%clk 0:00:09.3]} 42. g4 {[%clk 0:00:02.3]} 42... hxg4+ {[%clk 0:00:09.3]}
43. Kxg4 {[%clk 0:00:01.4]} 43... a3 {[%clk 0:00:09.7]} 44. h5 {[%clk
0:00:01.9]} 44... a2 {[%clk 0:00:10.4]} 45. h6 {[%clk 0:00:02.8]} 45... a1=Q
{[%clk 0:00:11]} 46. h7 {[%clk 0:00:03.5]} 46... Nf6+ {[%clk 0:00:11.7]} 47. Kf5
{[%clk 0:00:03.6]} 47... Nxh7 {[%clk 0:00:12.6]} 0-1

[Event "Late-Titled-Tuesday-Blitz-December-26-2023"]
[Site "Chess.com"]
[Date "2023.12.26"]
[Round "2"]
[White "Rodalquilar"]
[Black "Kaua18"]
[Result "1-0"]
[WhiteElo "2759"]
[BlackElo "2525"]
[TimeControl "180+1"]
[EndTime "14:18:18 PST"]
[Termination "Rodalquilar won by resignation"]

1. d4 {[%clk 0:03:00.9]} 1... Nf6 {[%clk 0:02:43.2]} 2. Nf3 {[%clk 0:03:01.1]}
2... c5 {[%clk 0:02:41.3]} 3. c3 {[%clk 0:03:01.2]} 3... e6 {[%clk 0:02:40.9]}
4. Bf4 {[%clk 0:03:00.9]} 4... Nc6 {[%clk 0:02:36]} 5. e3 {[%clk 0:03:01.2]}
5... d5 {[%clk 0:02:36.2]} 6. Nbd2 {[%clk 0:03:01.1]} 6... cxd4 {[%clk 0:02:36]}
7. exd4 {[%clk 0:03:01]} 7... Nh5 {[%clk 0:02:36.3]} 8. Be3 {[%clk 0:03:00.8]}
8... Bd6 {[%clk 0:02:36.6]} 9. Ne5 {[%clk 0:03:01.1]} 9... g6 {[%clk 0:02:36.1]}
10. Nd3 {[%clk 0:03:01.5]} 10... O-O {[%clk 0:02:28.7]} 11. g3 {[%clk
0:02:59.9]} 11... f5 {[%clk 0:02:25.6]} 12. Bh6 {[%clk 0:03:00.1]} 12... Rf7
{[%clk 0:02:24]} 13. f4 {[%clk 0:02:49.1]} 13... Bd7 {[%clk 0:02:05]} 14. Bg2
{[%clk 0:02:37.3]} 14... Qc7 {[%clk 0:01:58.5]} 15. Ne5 {[%clk 0:02:23.9]} 15...
Nxe5 {[%clk 0:01:49.6]} 16. fxe5 {[%clk 0:02:24.2]} 16... Be7 {[%clk 0:01:36.3]}
17. Bf3 {[%clk 0:02:20.9]} 17... Ng7 {[%clk 0:01:30.9]} 18. h4 {[%clk
0:02:20.8]} 18... Bb5 {[%clk 0:01:28.8]} 19. Be2 {[%clk 0:01:56.1]} 19... Qb6
{[%clk 0:01:21.1]} 20. Qb3 {[%clk 0:01:44.8]} 20... Bxe2 {[%clk 0:01:03.9]} 21.
Qxb6 {[%clk 0:01:45.7]} 21... axb6 {[%clk 0:01:04.8]} 22. Kxe2 {[%clk
0:01:46.1]} 22... Nh5 {[%clk 0:01:00.6]} 23. Kf3 {[%clk 0:01:46.2]} 23... b5
{[%clk 0:00:57.2]} 24. a3 {[%clk 0:01:44.6]} 24... b6 {[%clk 0:00:51.6]} 25. Nb3
{[%clk 0:01:38]} 25... Ng7 {[%clk 0:00:43.2]} 26. Nc1 {[%clk 0:01:29.6]} 26...
Kf8 {[%clk 0:00:42.1]} 27. Nd3 {[%clk 0:01:27.4]} 27... Ke8 {[%clk 0:00:42.2]}
28. Nf4 {[%clk 0:01:13.8]} 28... Kd7 {[%clk 0:00:42]} 29. Rae1 {[%clk
0:01:13.9]} 29... Nh5 {[%clk 0:00:37.3]} 30. Nxd5 {[%clk 0:01:12.4]} 30... exd5
{[%clk 0:00:15.2]} 31. e6+ {[%clk 0:01:12.4]} 31... Ke8 {[%clk 0:00:15.9]} 32.
exf7+ {[%clk 0:01:12.8]} 32... Kxf7 {[%clk 0:00:16.8]} 33. Bg5 {[%clk
0:01:07.5]} 33... Bd6 {[%clk 0:00:16.9]} 34. Rhg1 {[%clk 0:00:57.8]} 34... Rh8
{[%clk 0:00:08.8]} 35. g4 {[%clk 0:00:57.6]} 35... Ng7 {[%clk 0:00:05.1]} 36.
Rgf1 {[%clk 0:00:27.3]} 36... h6 {[%clk 0:00:05.1]} 37. Bf4 {[%clk 0:00:27.5]}
37... Be7 {[%clk 0:00:05.7]} 38. Be5 {[%clk 0:00:22.5]} 38... Bxh4 {[%clk
0:00:05.3]} 39. Bxg7 {[%clk 0:00:21.3]} 39... Kxg7 {[%clk 0:00:05.9]} 40. Re6
{[%clk 0:00:18.5]} 40... Rf8 {[%clk 0:00:06.3]} 41. gxf5 {[%clk 0:00:16]} 41...
Rxf5+ {[%clk 0:00:05.2]} 42. Ke2 {[%clk 0:00:14.4]} 42... Rh5 {[%clk 0:00:04]}
43. Rxb6 {[%clk 0:00:13.6]} 43... Bg5 {[%clk 0:00:03.2]} 44. Rb7+ {[%clk
0:00:13.1]} 44... Kg8 {[%clk 0:00:03.8]} 45. Rff7 {[%clk 0:00:13]} 45... Rh2+
{[%clk 0:00:04.4]} 46. Kf3 {[%clk 0:00:12.2]} 46... Rh1 {[%clk 0:00:03]} 47.
Rfc7 {[%clk 0:00:11.1]} 47... Rf1+ {[%clk 0:00:02.8]} 48. Kg2 {[%clk 0:00:11.5]}
48... Rf8 {[%clk 0:00:03.4]} 49. Rg7+ {[%clk 0:00:11.3]} 1-0

[Event "Late-Titled-Tuesday-Blitz-December-26-2023"]
[Site "Chess.com"]
[Date "2023.12.26"]
[Round "2"]
[White "shaya01"]
[Black "sebastianmarinp"]
[Result "1-0"]
[WhiteElo "2230"]
[BlackElo "2454"]
[TimeControl "180+1"]
[EndTime "14:18:24 PST"]
[Termination "shaya01 won on time"]

1. e4 {[%clk 0:03:00.9]} 1... c5 {[%clk 0:02:59.3]} 2. Nf3 {[%clk 0:02:58.1]}
2... d6 {[%clk 0:02:58.2]} 3. d4 {[%clk 0:02:57.9]} 3... cxd4 {[%clk 0:02:59.1]}
4. Nxd4 {[%clk 0:02:57.9]} 4... Nf6 {[%clk 0:02:59.2]} 5. Nc3 {[%clk 0:02:56.9]}
5... g6 {[%clk 0:02:59.4]} 6. g3 {[%clk 0:02:57]} 6... Nc6 {[%clk 0:02:58.7]} 7.
Nde2 {[%clk 0:02:54]} 7... Bg7 {[%clk 0:02:58.1]} 8. Bg2 {[%clk 0:02:54.1]} 8...
O-O {[%clk 0:02:58.2]} 9. O-O {[%clk 0:02:54.1]} 9... Bd7 {[%clk 0:02:49.5]} 10.
h3 {[%clk 0:02:53.1]} 10... a6 {[%clk 0:02:45.3]} 11. a4 {[%clk 0:02:50.3]}
11... Rc8 {[%clk 0:02:43.2]} 12. f4 {[%clk 0:02:46.7]} 12... Ne8 {[%clk
0:02:29.9]} 13. Be3 {[%clk 0:02:44.6]} 13... Na5 {[%clk 0:02:26.3]} 14. Bd4
{[%clk 0:02:38.1]} 14... Nc4 {[%clk 0:02:11.3]} 15. b3 {[%clk 0:02:35]} 15... e5
{[%clk 0:01:56.1]} 16. fxe5 {[%clk 0:02:26]} 16... Nxe5 {[%clk 0:01:57]} 17. Nd5
{[%clk 0:02:20.5]} 17... Bc6 {[%clk 0:01:49.6]} 18. Nec3 {[%clk 0:02:12.2]}
18... Kh8 {[%clk 0:01:16.8]} 19. Nb6 {[%clk 0:02:05.8]} 19... Rc7 {[%clk
0:01:12.5]} 20. Ncd5 {[%clk 0:02:02.4]} 20... Bxd5 {[%clk 0:01:07]} 21. exd5
{[%clk 0:02:00.6]} 21... f5 {[%clk 0:01:02.9]} 22. a5 {[%clk 0:01:52.2]} 22...
Re7 {[%clk 0:01:00]} 23. Qd2 {[%clk 0:01:44.5]} 23... Nc7 {[%clk 0:00:59]} 24.
Rae1 {[%clk 0:01:38.3]} 24... Rfe8 {[%clk 0:00:56.7]} 25. c4 {[%clk 0:01:31.1]}
25... Kg8 {[%clk 0:00:45.3]} 26. Kh1 {[%clk 0:01:29.5]} 26... Nd7 {[%clk
0:00:40.4]} 27. Bxg7 {[%clk 0:01:08.9]} 27... Kxg7 {[%clk 0:00:41.3]} 28. Nxd7
{[%clk 0:00:59.5]} 28... Qxd7 {[%clk 0:00:31]} 29. Qc3+ {[%clk 0:00:50.3]} 29...
Kg8 {[%clk 0:00:29.4]} 30. b4 {[%clk 0:00:50.7]} 30... Rxe1 {[%clk 0:00:24.7]}
31. Rxe1 {[%clk 0:00:50.1]} 31... Rxe1+ {[%clk 0:00:25.2]} 32. Qxe1 {[%clk
0:00:50.2]} 32... Ne8 {[%clk 0:00:24.1]} 33. Qe6+ {[%clk 0:00:48.9]} 33... Qf7
{[%clk 0:00:20.6]} 34. c5 {[%clk 0:00:46.3]} 34... dxc5 {[%clk 0:00:10.2]} 35.
Qxf7+ {[%clk 0:00:45.3]} 35... Kxf7 {[%clk 0:00:10.1]} 36. bxc5 {[%clk 0:00:46]}
36... Nf6 {[%clk 0:00:08]} 37. d6 {[%clk 0:00:40.2]} 37... Nd7 {[%clk
0:00:06.7]} 38. Bxb7 {[%clk 0:00:37]} 38... Nxc5 {[%clk 0:00:06.8]} 39. Bd5+
{[%clk 0:00:29.9]} 39... Kf6 {[%clk 0:00:07]} 40. Bc4 {[%clk 0:00:25.7]} 40...
Ke5 {[%clk 0:00:07]} 41. d7 {[%clk 0:00:23.7]} 41... Nxd7 {[%clk 0:00:07.3]} 42.
Bxa6 {[%clk 0:00:23.8]} 42... Kd6 {[%clk 0:00:06.4]} 43. Bb5 {[%clk 0:00:20]}
43... Ne5 {[%clk 0:00:06.3]} 44. a6 {[%clk 0:00:17.5]} 44... Kc7 {[%clk
0:00:04.9]} 45. Kg2 {[%clk 0:00:16.7]} 45... Kb6 {[%clk 0:00:04.7]} 46. Be2
{[%clk 0:00:13.1]} 46... g5 {[%clk 0:00:04.8]} 47. Kf2 {[%clk 0:00:12.3]} 47...
Nd7 {[%clk 0:00:04.5]} 48. Ke3 {[%clk 0:00:11.3]} 48... Nc5 {[%clk 0:00:04.3]}
49. Kd4 {[%clk 0:00:11.5]} 49... h5 {[%clk 0:00:01.4]} 50. a7 {[%clk 0:00:09.5]}
1-0